{"text_format":"1","workbook":"xlsx","n_sheets":6,"sheets":["Sheet1","Sheet2","Sheet3","MSM_Example","PF_Example","Help"],"not_rendered":{"charts":0,"images":0,"macros":1,"external_links":0,"defined_names":48,"comments":0,"pivot_tables":0},"unopened":[],"bounds":{"document_bytes":16777216,"sheet_cells":100000,"rows_first":2000,"rows_last":500,"rows_between":2000,"halvings":0,"cell_chars":16384,"cell_head_chars":4096},"cells_cut":0,"cells_raw":0,"read":"whole","date_system":"1900"}

{"sheet":"Sheet1","index":0,"n_rows":0,"n_cols":0,"rows_kept":0,"cut":false,"hidden":false,"merged":[]}

{"sheet":"Sheet2","index":1,"n_rows":0,"n_cols":0,"rows_kept":0,"cut":false,"hidden":false,"merged":[]}

{"sheet":"Sheet3","index":2,"n_rows":0,"n_cols":0,"rows_kept":0,"cut":false,"hidden":false,"merged":[]}

{"sheet":"MSM_Example","index":3,"n_rows":11,"n_cols":3,"rows_kept":11,"cut":false,"hidden":false,"merged":[]}
["Quantity","Value","Formula"]
["tau_MSM",10000]
["V",5]
["r_MSM",7]
["l_MSM",3]
["q_MSM",0.1]
["MTTF_MSM",175000]
["lambda_E_MSM",{"$f":"LambdaEMSM(tau_MSM,MTTF_MSM,V,r_MSM,l_MSM,q_MSM)","v":3.1953046430999166E-8},{"$f":"ShowFormula(B8)","v":"=LambdaEMSM(tau_MSM,MTTF_MSM,V,r_MSM,l_MSM,q_MSM)"}]
["rho_E_MSM",{"$f":"rrMSM(tau_MSM,MTTF_MSM,V,r_MSM,l_MSM,q_MSM)","v":8.2402448242646642E-6},{"$f":"ShowFormula(B9)","v":"=rrMSM(tau_MSM,MTTF_MSM,V,r_MSM,l_MSM,q_MSM)"}]
["MTTF_E_MSM",{"$f":"1/lambda_E_MSM","v":31295920.473794091},{"$f":"ShowFormula(B10)","v":"=1/lambda_E_MSM"}]
["MTTRN_E_MSM",{"$f":"1/rho_E_MSM","v":121355.61762137779},{"$f":"ShowFormula(B11)","v":"=1/rho_E_MSM"}]

{"sheet":"PF_Example","index":4,"n_rows":12,"n_cols":3,"rows_kept":12,"cut":false,"hidden":false,"merged":[]}
["Quantity","Value","Formula"]
["tau_PF",5000]
["MTTF_PF",175000]
["E_PF_PF",10000]
["SD_PF_PF",4000]
["q_PF",0.1]
["f_PF",{"$f":"1/(MTTF_PF-E_PF_PF)","v":6.060606060606061E-6},{"$f":"ShowFormula(B7)","v":"=1/(MTTF_PF-E_PF_PF)"}]
["Q0_PF",{"$f":"Q0(tau_PF,E_PF_PF,SD_PF_PF,q_PF)","v":4.8376873135566711E-2},{"$f":"ShowFormula(B8)","v":"=Q0(tau_PF,E_PF_PF,SD_PF_PF,q_PF)"}]
["lambda_E_PF",{"$f":"f_PF*Q0_PF","v":2.9319317051858613E-7},{"$f":"ShowFormula(B9)","v":"=f_PF*Q0_PF"}]
["rho_E_PF",{"$f":"f_PF*(1-Q0_PF)","v":5.7674128900874748E-6},{"$f":"ShowFormula(B10)","v":"=f_PF*(1-Q0_PF)"}]
["MTTF_E_PF",{"$f":"1/lambda_E_PF","v":3410720.6461570971},{"$f":"ShowFormula(B11)","v":"=1/lambda_E_PF"}]
["MTTRN_E_PF",{"$f":"1/rho_E_PF","v":173387.9677175034},{"$f":"ShowFormula(B12)","v":"=1/rho_E_PF"}]

{"sheet":"Help","index":5,"n_rows":17,"n_cols":1,"rows_kept":17,"cut":false,"hidden":false,"merged":[]}
["Reliability functions"]
["lambdaE(tau,MTTF,alpha)"]
["PFD(tau,lambda,k,N,beta)"]
["Q0(tau,E_PF,SD_PF,q)"]
["TauBRP(MTTF,alpha,Cp,Cu)"]
["cvWeibull(alpha)"]
["cvMSM(r,V)"]
["LambdaEMSM(tau,MTTF,V,r,l,q)"]
["rrMSM(tau,MTTF,V,r,l,q)"]
["NPV functions"]
["NPVFixed(X,r,T)"]
["NPVInc(X,r,v,T)"]
["NPVPeriodic(X,r,k,l)"]
["NPVt(X , r , t )"]
["Statistical functions"]
["logLWeibull(alpha,lambda,F,C)"]
["logLPowerLaw(lambda,beta,ti,a,b)"]